[Event "French Top 16-A 2024"]
[Site "Chartres"]
[Date "2024.06.01"]
[Round "2.11"]
[White "Dumas, Charles"]
[Black "Karthik Venkataraman"]
[Result "0-1"]
[ECO "C47"]
[WhiteElo "2256"]
[BlackElo "2606"]
[Annotator "TA"]
[PlyCount "92"]
[EventDate "2024.06.01"]
[EventType "team-tourn"]
[EventCountry "FRA"]
[SourceTitle "playchess.com"]
[Source "ChessBase"]
[SourceQuality "1"]
[TimeControl "40/5400+30:1800+30"]

{[%evp 10,92,40,36,52,48,59,53,60,61,75,39,55,45,62,52,48,28,60,68,86,35,77,60,91,0,48,-43,-36,-37,-37,-33,-45,-35,-39,-42,-34,-36,-19,-45,-34,-40,-57,-43,-45,-39,-38,-37,-37,-87,-95,-101,-59,-83,-45,-98,-115,-109,-99,-105,-83,-191,-185,-209,-192,-226,-223,-376,-350,-342,-341,-307,-254,-255,-237,-625,-625,-625,-618,-618,-618,-610,-599,-684,-620]} 1. e4 {[%emt 0:00:03]} e5 {[%emt 0:00:10]} 2. Nf3 {[%emt 0:00:27]} Nc6 {[%emt 0:00:05]} 3. Nc3 {[%emt 0:00:11]} Nf6 {[%emt 0:00:52]} 4. d4 {[%emt 0:00:20]} Bb4 {[%emt 0:00:18]} 5. Nxe5 {[%emt 0:02:27]} Qe7 {[%emt 0:00:08]} 6. Qd3 {[%emt 0:01:58]} Nxe5 {[%emt 0:01:35]} 7. dxe5 {[%emt 0:00:05]} Qxe5 {[%emt 0:00:05]} 8. Bd2 {[%emt 0:01:49]} Qe7 {[%emt 0:01:23] White is slightly better.} 9. O-O-O {[%emt 0:05:00][%cal Oe4e5] [#] e5! is the strong threat.} O-O {[%emt 0:00:32]} 10. Re1 {[%emt 0:09:46]} d6 {[%emt 0:01:59]} 11. Qg3 {[%emt 0:18:57]} Re8 {[%emt 0:03:35][%cal Od6d5]} 12. Bd3 {[%emt 0:02:41]} c6 {[%emt 0:05:11]} 13. Kb1 {[%emt 0:04:06]} Ba5 {[%emt 0:14:09]} 14. f4 {[%emt 0:02:22]} Bc7 {[%emt 0:01:22]} 15. Ne2 {[%emt 0:06:01]} (15. Rhf1 $16) 15... a5 {[%emt 0:04:51][%cal Oc8d7,Ba7a5,Ba5a4][%mdl 32]} (15... Nxe4 $2 {perishes.} 16. Bxe4 d5 (16... Qxe4 $2 {too greedy.} 17. Nd4 $18) 17. Bd3 $18) 16. Nd4 {[%emt 0:01:28]} a4 {[%emt 0:01:36]} 17. Bc3 {[%emt 0:03:05]} (17. a3 $16) 17... Ba5 {[%emt 0:08:05]} (17... a3 $1 $11) 18. Nf5 {[%emt 0:12:52]} (18. Bxa5 $1 $14 Rxa5 19. a3) 18... Bxf5 $15 {[%emt 0:01:03]} 19. exf5 {[%emt 0:00:11]} Qd8 {[%emt 0:00:03] White must now prevent ...Bxc3.} 20. Rxe8+ {[%emt 0:01:42]} Nxe8 {[%emt 0:00:11]} 21. Bxa5 {[%emt 0:06:02]} Qxa5 {[%emt 0:01:23]} 22. a3 {[%emt 0:00:42]} Nf6 {[%emt 0:00:07]} 23. Re1 {[%emt 0:03:22]} Kf8 {[%emt 0:00:23]} 24. Re2 {[%emt 0:00:29]} (24. Qf2 {simplifies} Qa7 25. Qxa7 Rxa7 26. c4) 24... Qc5 {[%emt 0:00:40]} 25. Qe3 {[%emt 0:02:58]} Qxe3 {[%emt 0:02:58]} 26. Rxe3 {[%emt 0:00:03][%mdl 4096] Endgame. KRB-KRN} d5 {[%emt 0:00:15]} 27. Kc1 {[%emt 0:02:37]} b5 {[%emt 0:02:07]} 28. Kd2 {[%emt 0:01:02]} Rb8 {[%emt 0:00:02]} 29. c3 {[%emt 0:02:03]} (29. Re2 $15) 29... Re8 $17 {[%emt 0:01:56]} 30. Rxe8+ {[%emt 0:07:52]} Kxe8 {[%emt 0:00:09] KB-KN} 31. Be2 {[%emt 0:00:36]} Ke7 {[%emt 0:08:13]} 32. Ke3 {[%emt 0:00:10] Black continues to play with concentration.} ({White should try} 32. g4 $15) 32... Kd6 {[%emt 0:00:08]} 33. g3 {[%emt 0:00:44]} Kc5 {[%emt 0:00:08]} 34. Kd3 {[%emt 0:01:46]} Ne4 {[%emt 0:04:09]} 35. Bh5 {[%emt 0:01:31]} (35. g4 $17) 35... Nd6 $19 {[%emt 0:02:26]} 36. Kc2 {[%emt 0:00:30]} f6 {[%emt 0:00:32]} ({Worse is} 36... Nxf5 37. Bxf7 d4 38. Be6 $11) 37. g4 {[%emt 0:00:28]} Nc4 {[%emt 0:00:47]} 38. h3 $2 {[%emt 0:00:16] [#]} (38. g5) 38... Ne3+ {[%emt 0:00:27]} 39. Kd2 {[%emt 0:00:45]} Ng2 {[%emt 0:13:13]} 40. Be8 {[%emt 0:00:28]} Nxf4 {[%emt 0:00:04]} 41. h4 {[%emt 0:01:43]} Ng2 {[%emt 0:00:42]} 42. h5 {[%emt 0:03:39]} (42. Ke2) 42... h6 {[%emt 0:00:29] Black is clearly winning.} 43. Bd7 {[%emt 0:01:11]} Nf4 {[%emt 0:00:22]} 44. Be8 {[%emt 0:00:42]} Nh3 {[%emt 0:00:11]} 45. Ke3 {[%emt 0:00:13]} Ng5 {[%emt 0:00:05]} 46. Kd3 {[%emt 0:02:30]} Nf3 {[%emt 0:00:25] Weighted Error Value: White=0.31/Black=0.09 (flawless) .  Mistake:       	White=8     	Black=1      Inaccurate:     	White=2     	Black=4      OK:         	White=13    	Black=13     Best:        	White=2     	Black=4} 0-1

[Event "French Top 16-A 2024"]
[Site "Chartres"]
[Date "2024.06.01"]
[Round "2.12"]
[White "Milliet, Sophie"]
[Black "Warnier, Yanis"]
[Result "1-0"]
[ECO "E05"]
[WhiteElo "2385"]
[BlackElo "2171"]
[Annotator "RC"]
[PlyCount "53"]
[EventDate "2024.06.01"]
[EventType "team-tourn"]
[EventCountry "FRA"]
[SourceTitle "playchess.com"]
[Source "ChessBase"]
[SourceQuality "1"]
[TimeControl "40/5400+30:1800+30"]

1. d4 {[%emt 0:00:03]} d5 {[%emt 0:00:17]} 2. c4 {[%emt 0:00:09]} e6 {[%emt 0:00:08]} 3. Nf3 {[%emt 0:00:10]} Nf6 {[%emt 0:00:07]} 4. g3 {[%emt 0:00:13]} Be7 {[%emt 0:00:04]} 5. Bg2 {[%emt 0:00:05]} O-O {[%emt 0:00:06]} 6. O-O {[%emt 0:00:06]} dxc4 {[%emt 0:00:55]} 7. Qc2 {[%emt 0:00:28]} b5 {[%emt 0:01:09]} 8. a4 {[%emt 0:01:10]} b4 {[%emt 0:00:12]} 9. Nfd2 {[%emt 0:00:23]} Nd5 {[%emt 0:00:05]} 10. Nxc4 {[%emt 0:00:26]} c5 {[%emt 0:01:08]} 11. dxc5 {[%emt 0:00:15]} Ba6 {[%emt 0:02:35]} 12. Ne3 {[%emt 0:00:41]} Nd7 {[%emt 0:13:33]} 13. Nxd5 {[%emt 0:00:16]} exd5 {[%emt 0:00:07]} 14. c6 {[%emt 0:01:26]} Nc5 {[%emt 0:00:53]} 15. Rd1 {[%emt 0:00:40]} d4 {[%emt 0:02:12]} 16. Bf4 {[%emt 0:00:35]} Rc8 {[%emt 0:01:28]} 17. c7 {[%emt 0:29:49]} Qd7 {[%emt 0:01:57]} 18. h4 {[%emt 0:03:45]} h6 {[%emt 0:00:52]} 19. Bf3 {[%emt 0:03:06]} Rfe8 {[%emt 0:10:44]} 20. Nd2 {[%emt 0:21:51]} d3 {[%emt 0:09:25]} 21. exd3 {[%emt 0:00:26]} Bxd3 {[%emt 0:00:09]} 22. Qc1 {[%emt 0:00:23]} Qe6 {[%emt 0:26:34]} 23. Re1 {[%emt 0:02:08]} Qa6 {[%emt 0:04:20]} 24. Rxe7 {[%emt 0:00:53]} Rxe7 {[%emt 0:00:01]} 25. Qxc5 {[%emt 0:00:05]} Rce8 {[%emt 0:02:15]} 26. Rc1 {[%emt 0:06:14]} Qc8 {[%emt 0:01:11]} 27. Kh2 {[%emt 0:04:33]} 1-0

[Event "French Top 16-A 2024"]
[Site "Chartres"]
[Date "2024.06.01"]
[Round "2.12"]
[White "De Balmann, Marc"]
[Black "Cornette, Matthieu"]
[Result "1/2-1/2"]
[ECO "A07"]
[WhiteElo "2151"]
[BlackElo "2568"]
[Annotator "TA"]
[PlyCount "106"]
[EventDate "2024.06.01"]
[EventType "team-tourn"]
[EventCountry "FRA"]
[SourceTitle "playchess.com"]
[Source "ChessBase"]
[SourceQuality "1"]
[TimeControl "40/5400+30:1800+30"]

{[%evp 12,106,5,-11,-3,-13,-28,-25,-23,-32,-22,-43,-11,-15,-1,-8,-14,-56,25,24,33,24,12,19,33,10,8,15,15,10,32,35,29,25,111,123,199,166,181,166,214,213,240,185,230,127,134,0,213,201,292,287,263,247,311,302,337,330,397,353,352,327,358,373,377,372,439,353,341,350,827,831,968,852,853,853,852,844,841,778,683,681,681,679,664,0,0,0,0,0,0,0,0,0,0,0,550]} 1. Nf3 {[%emt 0:00:04]} Nf6 {[%emt 0:02:35]} 2. g3 {[%emt 0:00:05]} d5 {[%emt 0:00:43]} 3. Bg2 {[%emt 0:00:07]} e6 {[%emt 0:00:22]} 4. O-O {[%emt 0:00:09]} Be7 {[%emt 0:00:28]} 5. d3 {[%emt 0:00:10]} O-O {[%emt 0:00:46]} 6. Nbd2 {[%emt 0:00:10]} a5 {[%emt 0:00:08] A07: Réti Opening: New York and Capablanca Systems.} 7. e4 {[%emt 0:01:07]} a4 {[%emt 0:00:07]} 8. a3 {[%emt 0:03:27]} c5 {[%emt 0:00:44]} 9. e5 {[%emt 0:00:29]} Nfd7 {[%emt 0:00:06]} 10. Re1 {[%emt 0:00:13]} Nc6 {[%emt 0:00:08]} 11. Nf1 {[%emt 0:00:26]} Ra6 {[%emt 0:01:49]} 12. h4 {[%emt 0:03:07]} f6 {[%emt 0:00:32]} 13. exf6 {[%emt 0:04:03]} Nxf6 {[%emt 0:00:56]} 14. Bh3 $146 {[%emt 0:05:24] [#]} ({Predecessor:} 14. N1h2 Bd6 15. c4 dxc4 16. dxc4 e5 17. Be3 Nd4 18. Ng5 Bb8 19. Ne4 Nxe4 20. Bxe4 {0-1 Mamedov,R (2646)-Salgado Lopez,I (2591) Chessable Masters Play In rapid 2023 (7)}) 14... e5 {[%emt 0:20:00]} (14... Bd6 $1 $15) 15. Bxc8 $11 {[%emt 0:03:32]} Qxc8 {[%emt 0:00:08]} 16. Nxe5 {[%emt 0:00:50]} Nxe5 {[%emt 0:01:48]} 17. Rxe5 {[%emt 0:00:07]} Bd6 {[%emt 0:00:06]} 18. Re2 {[%emt 0:05:28]} Ng4 {[%emt 0:11:50]} 19. d4 {[%emt 0:18:53]} Kh8 {[%emt 0:07:36]} 20. Be3 {[%emt 0:05:20]} c4 {[%emt 0:05:35]} 21. c3 {[%emt 0:06:02]} Bc7 {[%emt 0:09:31]} 22. Qc2 {[%emt 0:02:16]} b5 {[%emt 0:00:27]} (22... Raf6 $11 {remains equal.}) 23. Bg5 $16 {[%emt 0:07:02]} Nf6 {[%emt 0:03:01]} (23... Re6 $16 {keeps fighting.} 24. Rae1 Re4 (24... Rxf2 $2 25. Rxe6 Rf8 26. Qe2 $18) 25. Rxe4 dxe4) 24. Bxf6 {[%emt 0:05:05]} Raxf6 {[%emt 0:00:09]} 25. Rae1 {[%emt 0:00:18]} h6 {[%emt 0:02:51]} (25... Bd6 $142 26. f4 h6) 26. Kg2 $18 {[%emt 0:03:12]} Qd7 {[%emt 0:05:02]} 27. Nh2 {[%emt 0:01:22]} Bd6 {[%emt 0:02:17]} 28. Qd2 {[%emt 0:07:32]} ({White should play} 28. f4 $18) 28... Qf5 $16 {[%emt 0:02:56]} 29. Qc2 {[%emt 0:01:52]} (29. Kg1 $16) 29... Qh5 $2 {[%emt 0:22:19]} (29... Qd7 $1 $11) 30. f4 $18 {[%emt 0:02:13]} Bxf4 {[%emt 0:00:00]} (30... Kg8 $142 31. Re6 Rxe6 32. Rxe6 Re8 33. Rxe8+ (33. Rxd6 $2 Re2+ $19) (33. g4 Qf7 $18) 33... Qxe8) 31. gxf4 $18 {[%emt 0:00:27]} Rxf4 {[%emt 0:00:00]} 32. Kh1 {[%emt 0:02:06]} Qxh4 {[%emt 0:00:00]} 33. Qg6 {[%emt 0:05:14]} Qh3 {[%emt 0:00:00]} 34. Rg1 {[%emt 0:01:32]} Qd7 {[%emt 0:00:00]} 35. Qe6 {[%emt 0:00:23]} Qxe6 {[%emt 0:00:00]} 36. Rxe6 {[%emt 0:00:02]} Rh4 {[%emt 0:00:00]} 37. Kg2 {[%emt 0:00:40]} Rf5 {[%emt 0:00:00]} 38. Re3 {[%emt 0:01:43]} g5 {[%emt 0:00:57]} 39. Rh3 {[%emt 0:02:23]} Rxh3 {[%emt 0:00:57]} 40. Kxh3 {[%emt 0:00:03]} Kg7 $2 {[%emt 0:00:26]} (40... Rf2 41. Rg2 Rf4) 41. Rf1 $18 {[%emt 0:31:34]} Kg6 {[%emt 0:30:52]} 42. Rxf5 {[%emt 0:00:00]} Kxf5 {[%emt 0:00:00]} 43. Ng4 {[%emt 0:00:00]} h5 {[%emt 0:00:00]} 44. Ne5 {[%emt 0:00:00]} Kf4 {[%emt 0:00:00]} 45. Nd7 {[%emt 0:00:00]} g4+ {[%emt 0:00:00]} 46. Kg2 {[%emt 0:00:00]} ({Wrong is} 46. Kh4 $2 g3 47. Kxh5 g2 $19) 46... h4 {[%emt 0:00:00]} 47. Nf6 {[%emt 0:00:00]} h3+ {[%emt 0:00:00]} 48. Kh2 $2 {[%emt 0:00:00]} ({Better is} 48. Kg1 $18) 48... Kf3 $11 {[%emt 0:00:00]} 49. Nh5 {[%emt 0:00:00]} (49. Nxd5 g3+ 50. Kg1 h2+ 51. Kh1 g2+ 52. Kxh2 Kf2 53. Kh3 g1=Q (53... g1=R $2 54. Kh4 $19) 54. Kh4 Kf3 55. Kh5 Qg7) 49... Kf2 $1 {[%emt 0:00:00]} 50. Ng3 {[%emt 0:00:00]} (50. Nf4 $5) 50... Kf3 {[%emt 0:00:00]} 51. Nh5 {[%emt 0:00:00]} Kf2 $1 {[%emt 0:00:00]} 52. Ng3 {[%emt 0:00:00]} (52. Nf4 $5) 52... Kf3 {[%emt 0:00:00]} 53. Nh5 {[%emt 0:10:48]} Ke4 $2 {[%emt 0:08:48][%mdl 8192]} (53... Kf2 $1 $11) 1/2-1/2

[Event "French Top 16-A 2024"]
[Site "Chartres"]
[Date "2024.06.01"]
[Round "2.13"]
[White "Vaisser, Anatoly"]
[Black "Solakian-Van Eyll, Jerome"]
[Result "1-0"]
[ECO "D26"]
[WhiteElo "2451"]
[BlackElo "2247"]
[Annotator "TA"]
[PlyCount "148"]
[EventDate "2024.06.01"]
[EventType "team-tourn"]
[EventCountry "FRA"]
[SourceTitle "playchess.com"]
[Source "ChessBase"]
[SourceQuality "1"]
[TimeControl "40/5400+30:1800+30"]

{[%evp 19,148,14,20,6,0,2,6,4,7,2,13,0,4,0,11,7,0,0,0,0,0,0,0,-3,11,0,6,-13,8,10,4,5,6,6,9,8,7,0,0,0,2,0,0,-7,0,0,0,-14,0,0,0,0,0,0,0,0,6,6,40,41,30,0,9,9,218,204,218,218,186,93,183,183,183,183,194,12,12,8,15,15,15,15,20,14,35,40,449,449,466,462,367,450,453,400,3852,947,899,899,848,844,5395,5395,5395,5395,5330,5261,5321,4825,29970,10301,29975,29976,29978,29978,29982,29983,29983,29984,29984,29983,29983,29984,29984,29985,29985,29985,29986,29987,29987,29988,29988]} 1. d4 {[%emt 0:00:04]} d5 {[%emt 0:00:59]} 2. c4 {[%emt 0:00:11]} dxc4 {[%emt 0:00:21]} 3. e3 {[%emt 0:00:15]} Nf6 {[%emt 0:00:42]} 4. Bxc4 {[%emt 0:00:11]} e6 {[%emt 0:00:10]} 5. Nf3 {[%emt 0:00:34]} c5 {[%emt 0:00:24]} 6. O-O {[%emt 0:00:59]} Nc6 {[%emt 0:00:30]} 7. dxc5 {[%emt 0:08:30]} Qd4 {[%emt 1:30:54]} 8. Qd3 Qxd3 {[%emt 0:00:00]} 9. Re1 {[%emt 1:24:16]} Qd1 10. Rxd1 {[%emt 0:00:00]} Bxc5 {[%emt 0:00:00]} 11. b3 {[%emt 0:00:00]} b6 {[%emt 0:00:00]} 12. Bb2 {[%emt 0:00:00] Strongly threatening Bb5.} Bb7 {[%emt 0:00:00]} 13. Nbd2 {[%emt 0:00:00] The position is equal.} Be7 {[%emt 0:00:00]} 14. Rac1 {[%emt 0:00:00] Hoping for Bb5.} O-O {[%emt 0:00:00]} 15. h3 {[%emt 0:00:00]} Rfd8 {[%emt 0:00:00]} 16. Be2 {[%emt 0:00:00]} Rac8 {[%emt 0:00:00]} 17. a3 {[%emt 0:00:00]} Kf8 {[%emt 0:00:00]} 18. g4 {[%emt 0:00:00]} h6 {[%emt 0:00:00]} 19. Ne1 {[%emt 0:00:00]} Nb8 {[%emt 0:00:00]} 20. Nc4 {[%emt 0:00:00]} Rxd1 {[%emt 0:00:00]} 21. Rxd1 {[%emt 0:00:00]} Rd8 {[%emt 0:00:00]} 22. Nd3 {[%emt 0:00:00]} Ne4 {[%emt 0:00:00]} 23. Nce5 {[%emt 0:00:00]} Nc5 {[%emt 0:00:00]} 24. Nxc5 {[%emt 0:00:00]} Rxd1+ {[%emt 0:00:00]} 25. Bxd1 {[%emt 0:00:00]} Bxc5 {[%emt 0:00:00]} 26. b4 {[%emt 0:00:00]} Bd6 {[%emt 0:00:24]} 27. Nc4 {[%emt 0:00:00]} Bc7 {[%emt 0:01:53]} 28. f3 {[%emt 0:02:03]} Bd5 {[%emt 0:05:56]} 29. Be2 {[%emt 0:00:31]} b5 {[%emt 0:00:19]} 30. Ne5 {[%emt 0:01:38]} a6 {[%emt 0:00:46]} 31. e4 {[%emt 0:01:16]} Bb6+ {[%emt 0:00:13]} 32. Kg2 {[%emt 0:00:23]} Bb3 {[%emt 0:00:28]} 33. h4 {[%emt 0:02:47]} f6 {[%emt 0:00:15]} 34. Nd3 {[%emt 0:00:28]} Bc4 {[%emt 0:00:12]} 35. Nf4 {[%emt 0:01:56] Threatens to win with Bxc4.} Bxe2 {[%emt 0:01:20]} 36. Nxe2 $11 {[%emt 0:00:02][%mdl 4096] Endgame. KBN-KBN} Nc6 {[%emt 0:00:01]} 37. f4 {[%emt 0:00:39]} a5 {[%emt 0:01:35]} 38. bxa5 {[%emt 0:00:27]} Nxa5 {[%emt 0:00:57]} 39. Bd4 {[%emt 0:00:16]} Bc7 {[%emt 0:00:47]} 40. f5 {[%emt 0:01:07]} Bd6 {[%emt 0:00:30] Inhibits Bc5.} 41. Nc3 {[%emt 0:30:27]} exf5 $2 {[%emt 0:30:50]} (41... Bxa3 $11 {and Black has nothing to worry.} 42. Nxb5 Bb4) 42. Nxb5 $18 {[%emt 0:00:15]} Bxa3 {[%emt 0:00:22]} 43. Nxa3 {[%emt 0:00:10]} fxg4 {[%emt 0:00:00]} 44. Bc3 {[%emt 0:00:00]} (44. h5 $1 $18) 44... Nb3 {[%emt 0:00:00]} (44... Nb7 $16) 45. Kg3 {[%emt 0:00:00]} h5 {[%emt 0:00:00]} 46. Nc4 $1 {[%emt 0:00:00]} Ke7 {[%emt 0:00:00]} 47. Kf4 $2 {[%emt 0:00:00]} (47. e5 $1 $18 {[%cal Re5f6]}) 47... Ke6 $11 {[%emt 0:00:00]} 48. Ke3 {[%emt 0:00:00]} Nc5 {[%emt 0:00:00]} 49. Bb4 {[%emt 0:00:00]} Nd7 {[%emt 0:00:00]} 50. Kf4 {[%emt 0:00:00]} Nb8 {[%emt 0:01:27]} 51. Bc3 {[%emt 0:01:08]} Nc6 {[%emt 0:00:29]} 52. Ne3 {[%emt 0:00:28] Nf5 would now be deadly.} Kf7 $2 {[%emt 0:01:14][%mdl 8192] [#] Black is on the road to losing.} (52... Ne5 $14) 53. e5 $1 $18 {[%emt 0:01:44] And now exf6 would win.} fxe5+ {[%emt 0:01:04]} 54. Bxe5 {[%emt 0:00:06]} Nd8 {[%emt 0:00:10] [#]} 55. Kg5 $1 {[%emt 0:00:34]} g6 {[%emt 0:00:41]} 56. Ng2 {[%emt 0:00:19] Nf4 is the strong threat.} Nc6 {[%emt 0:01:17]} (56... Ne6+ $142 57. Kh6 Nc5) 57. Bc3 {[%emt 0:00:31]} (57. Bf6 $142 Nb8 58. Nf4) 57... Nd8 {[%emt 0:00:44]} 58. Nf4 {[%emt 0:00:25]} g3 {[%emt 0:00:18]} 59. Be1 {[%emt 0:01:16]} g2 {[%emt 0:00:12]} 60. Bf2 {[%emt 0:01:38]} Kg7 {[%emt 0:00:38]} 61. Nxg6 {[%emt 0:00:30]} (61. Nxg2 $2 Ne6#) 61... Nf7+ {[%emt 0:00:43]} 62. Kxh5 {[%emt 0:00:05]} Nd6 {[%emt 0:00:33]} 63. Nf4 {[%emt 0:00:30]} Ne4 {[%emt 0:00:24]} 64. Bd4+ {[%emt 0:00:08]} Kh7 {[%emt 0:00:09]} 65. Nxg2 {[%emt 0:00:11] White mates.} Ng3+ {[%emt 0:00:17]} 66. Kg4 {[%emt 0:00:12]} Ne4 {[%emt 0:00:12]} 67. Nf4 {[%emt 0:00:25]} Nd6 {[%emt 0:00:12]} 68. Ne6 {[%emt 0:00:24]} Nc4 {[%emt 0:00:58]} 69. Ng5+ {[%emt 0:00:34]} Kh6 {[%emt 0:00:16]} 70. Nf7+ {[%emt 0:00:39]} Kh7 {[%emt 0:00:10]} 71. Kh5 {[%emt 0:00:59]} Na5 {[%emt 0:00:36]} 72. Ng5+ {[%emt 0:00:50]} Kg8 {[%emt 0:00:05]} 73. Kg6 {[%emt 0:00:28]} Nc6 {[%emt 0:00:09]} 74. Bf6 {[%emt 0:00:13]} Nb8 {[%emt 0:03:44] Weighted Error Value: White=0.12 (very precise) /Black=0.29 (precise) .  Loses game:     	---       	Black=2      Missed win:     	White=1     	---        Mistake:       	White=2     	Black=2      Inaccurate:     	White=1     	Black=1      OK:         	White=14    	Black=20     Best:        	White=1     	Black=1      Strong:       	White=3     	---} 1-0

[Event "French Top 16-A 2024"]
[Site "Chartres"]
[Date "2024.06.01"]
[Round "2.13"]
[White "Malassagne, Raphael"]
[Black "Barbot, Pierre"]
[Result "0-1"]
[ECO "A45"]
[WhiteElo "2260"]
[BlackElo "2425"]
[Annotator "RC"]
[PlyCount "72"]
[EventDate "2024.06.01"]
[EventType "team-tourn"]
[EventCountry "FRA"]
[SourceTitle "playchess.com"]
[Source "ChessBase"]
[SourceQuality "1"]
[TimeControl "40/5400+30:1800+30"]

1. d4 {[%emt 0:00:02]} Nf6 {[%emt 0:04:59]} 2. Bg5 {[%emt 0:00:05]} e6 {[%emt 0:02:12]} 3. e4 {[%emt 0:01:01]} h6 {[%emt 0:00:59]} 4. Bxf6 {[%emt 0:00:06]} Qxf6 {[%emt 0:00:05]} 5. Nc3 {[%emt 0:01:07]} Bb4 {[%emt 0:02:45]} 6. Qd3 {[%emt 0:00:10]} d5 {[%emt 0:05:03]} 7. O-O-O {[%emt 0:07:10]} O-O {[%emt 0:01:45]} 8. e5 {[%emt 0:14:31]} Qd8 {[%emt 0:01:25]} 9. a3 {[%emt 0:07:38]} Be7 {[%emt 1:15:47]} 10. f4 {[%emt 0:01:56]} b5 {[%emt 0:00:00]} 11. h4 {[%emt 0:11:55]} b4 {[%emt 0:00:00]} 12. axb4 {[%emt 0:04:45]} Bxb4 {[%emt 0:00:00]} 13. Rh3 {[%emt 0:15:10]} c5 {[%emt 0:00:00]} 14. Nge2 {[%emt 0:11:36]} Qa5 {[%emt 0:00:00]} 15. Nb1 {[%emt 0:09:13]} c4 {[%emt 0:00:00]} 16. Qe3 {[%emt 0:01:08]} Nc6 {[%emt 0:00:00]} 17. f5 {[%emt 0:03:21]} exf5 {[%emt 0:00:00]} 18. Nf4 {[%emt 0:00:09]} Kh7 {[%emt 0:00:00]} 19. Be2 {[%emt 0:00:48]} Be7 {[%emt 0:00:00]} 20. Nc3 {[%emt 0:03:43]} Be6 {[%emt 0:00:00]} 21. g4 {[%emt 0:01:09]} fxg4 {[%emt 0:00:00]} 22. Nxe6 {[%emt 0:00:06]} fxe6 {[%emt 0:00:00]} 23. Bxg4 {[%emt 0:00:06]} Nd8 {[%emt 0:00:00]} 24. Rg1 {[%emt 0:01:37]} Rb8 {[%emt 0:00:55]} 25. Bh5 {[%emt 0:00:09]} Rb7 {[%emt 0:01:22]} 26. Qg3 {[%emt 0:02:31]} Bb4 {[%emt 0:00:22]} 27. Qg6+ {[%emt 0:00:48]} Kh8 {[%emt 0:00:01]} 28. Be2 {[%emt 0:01:26]} Qa1+ {[%emt 0:01:39]} 29. Kd2 {[%emt 0:00:07]} Qxb2 {[%emt 0:00:01]} 30. Rf1 {[%emt 0:01:12]} Rxf1 {[%emt 0:01:20]} 31. Bxf1 {[%emt 0:00:00]} Rf7 {[%emt 0:00:09]} 32. Be2 {[%emt 0:00:12]} Ba5 {[%emt 0:01:24]} 33. h5 {[%emt 0:00:10]} Qb6 {[%emt 0:00:40]} 34. Kc1 {[%emt 0:01:50]} Qxd4 {[%emt 0:00:56]} 35. Rf3 {[%emt 0:00:30]} Rxf3 {[%emt 0:00:57]} 36. Bxf3 {[%emt 0:00:13]} Qf4+ {[%emt 0:00:05]} 0-1

[Event "French Top 16-A 2024"]
[Site "Chartres"]
[Date "2024.06.01"]
[Round "2.14"]
[White "Loiseau, Quentin"]
[Black "Wlodarczyk, Cyril"]
[Result "1-0"]
[ECO "E11"]
[WhiteElo "2411"]
[BlackElo "2123"]
[Annotator "RC"]
[PlyCount "53"]
[EventDate "2024.06.01"]
[EventType "team-tourn"]
[EventCountry "FRA"]
[SourceTitle "playchess.com"]
[Source "ChessBase"]
[SourceQuality "1"]
[TimeControl "40/5400+30:1800+30"]

1. d4 {[%emt 0:05:22]} Nf6 {[%emt 0:00:16]} 2. c4 {[%emt 0:00:59]} e6 {[%emt 0:00:14]} 3. Nf3 {[%emt 0:00:07]} Bb4+ {[%emt 0:00:56]} 4. Bd2 {[%emt 0:01:55]} a5 {[%emt 0:01:22]} 5. a3 {[%emt 0:00:26]} Bxd2+ {[%emt 0:00:29]} 6. Qxd2 {[%emt 0:00:04]} b6 {[%emt 0:03:38]} 7. Nc3 {[%emt 0:11:43]} Bb7 {[%emt 0:00:29]} 8. Qf4 {[%emt 0:00:11]} d6 {[%emt 0:16:57]} 9. e4 {[%emt 0:08:09]} Nc6 {[%emt 0:01:35]} 10. d5 {[%emt 0:22:33]} e5 {[%emt 0:14:37]} 11. Qg5 {[%emt 0:03:04]} Nd4 {[%emt 0:00:36]} 12. Nxd4 {[%emt 0:05:23]} exd4 {[%emt 0:00:06]} 13. Nb5 {[%emt 0:00:09]} O-O {[%emt 0:05:07]} 14. Bd3 {[%emt 0:04:55]} Qe7 {[%emt 0:04:38]} 15. O-O {[%emt 0:07:10]} h6 {[%emt 0:02:30]} 16. Qf4 {[%emt 0:03:43]} Nh5 {[%emt 0:06:41]} 17. Qd2 {[%emt 0:01:01]} g5 {[%emt 0:01:34]} 18. Nxd4 {[%emt 0:00:49]} Rae8 {[%emt 0:00:37]} 19. Rae1 {[%emt 0:01:21]} Qf6 {[%emt 0:00:50]} 20. Bc2 {[%emt 0:03:50]} Re5 {[%emt 0:09:02]} 21. Re3 {[%emt 0:01:54]} g4 {[%emt 0:01:01]} 22. f4 {[%emt 0:02:47]} Ree8 {[%emt 0:05:49]} 23. e5 {[%emt 0:00:18]} dxe5 {[%emt 0:01:50]} 24. fxe5 {[%emt 0:00:06]} Qg5 {[%emt 0:00:18]} 25. Rf5 {[%emt 0:01:51]} Qh4 {[%emt 0:00:07]} 26. g3 {[%emt 0:00:38]} Qh3 {[%emt 0:00:07]} 27. Qd3 {[%emt 0:00:19]} 1-0